[Event "44th Chess Olympiad Open 2022"]
[Site "Chennai"]
[Date "2022.08.08"]
[Round "10.2"]
[White "Hovhannisyan, Robert"]
[Black "Abasov, Nijat"]
[Result "1-0"]
[ECO "C78"]
[WhiteElo "2591"]
[BlackElo "2633"]
[Annotator "TA"]
[PlyCount "101"]
[EventDate "2022.07.29"]
[EventType "team-tourn"]
[EventCountry "IND"]
[SourceTitle "playchess.com"]
[Source "ChessBase"]
[SourceQuality "1"]
[WhiteTeam "Armenia"]
[BlackTeam "Azerbaijan"]
[WhiteTeamCountry "ARM"]
[BlackTeamCountry "AZE"]
[TimeControl "40/5400+30:1800+30"]

{[%evp 12,101,47,53,45,30,35,28,31,27,31,15,22,4,6,0,16,16,16,16,16,15,15,15,14,0,24,29,38,15,104,116,109,105,93,89,96,96,99,93,114,114,99,94,239,257,395,322,322,318,273,252,290,290,430,430,421,400,393,393,348,339,551,538,529,529,529,466,516,438,562,562,562,562,562,562,555,555,548,548,531,468,877,874,844,844,783,774,731,531,583,534]} 1. e4 {[%emt 0:00:03]} e5 {[%emt 0:00:23]} 2. Nf3 {[%emt 0:00:09]} Nc6 {[%emt 0:00:09]} 3. Bb5 {[%emt 0:00:08][%cal Bf1b5,Bb5a4,Ba4b3][%mdl 32]} a6 {[%emt 0:00:17]} 4. Ba4 {[%emt 0:00:05]} Nf6 {[%emt 0:00:07]} 5. O-O {[%emt 0:00:06]} b5 {[%emt 0:00:25]} 6. Bb3 {[%emt 0:00:06]} Bc5 {[%emt 0:00:09] now supersedes 6...Be7.} 7. a4 {[%emt 0:00:28] Strongly threatening axb5.} Rb8 {[%emt 0:00:46] C78: Ruy Lopez: Archangelsk and Möller Defences.} (7... Nxe4 $2 8. axb5 Ne7 9. Nxe5 $18 (9. d3 Nxf2 10. Rxf2 Bxf2+ 11. Kxf2 f6 $18)) 8. Nxe5 {[%emt 0:01:04]} Nxe5 {[%emt 0:00:15]} 9. d4 {[%emt 0:00:05]} Bxd4 {[%emt 0:00:14] White has an edge.} 10. Qxd4 {[%emt 0:00:05]} d6 {[%emt 0:00:08]} 11. f4 {[%emt 0:01:34]} Nc6 {[%emt 0:00:18]} 12. Qd3 $5 {[%emt 0:00:56][%mdl 4] A promising side line.} O-O {[%emt 0:02:43]} 13. Nc3 {[%emt 0:00:31][%cal Ra4b5]} Nb4 {[%emt 0:19:15]} 14. Qd2 {[%emt 0:00:42]} Qe7 {[%emt 0:04:52] Prevents e5.} 15. axb5 {[%emt 0:08:42]} axb5 {[%emt 0:01:01] [#]} 16. e5 $5 $146 {[%emt 0:03:02][%mdl 8] An interesting novelty.} ({Predecessor:} 16. Re1 c5 17. e5 dxe5 18. fxe5 Ng4 19. Qg5 Qc7 20. Nd5 Nxd5 21. Bxd5 c4 22. Be3 {½-½ (37) Svidler,P (2769)-Kasimdzhanov,R (2699) Thessaloniki 2013}) 16... dxe5 {[%emt 0:02:46]} 17. fxe5 {[%emt 0:00:12]} Qxe5 {[%emt 0:05:30]} 18. Qf4 {[%emt 0:00:48]} Qxf4 {[%emt 0:17:44]} 19. Bxf4 {[%emt 0:01:28]} Na6 {[%emt 0:00:08]} 20. Ra5 {[%emt 0:15:35]} b4 {[%emt 0:00:54]} (20... Nc5 $1 $11 {remains equal.}) 21. Nd5 $36 {[%emt 0:08:04][%mdl 2048] White is in control. White is much more active.} Nxd5 {[%emt 0:02:11]} 22. Bxd5 {[%emt 0:00:08]} Rb6 {[%emt 0:03:12]} 23. Rfa1 {[%emt 0:12:04][%mdl 1024] White has strong compensation.} h6 {[%emt 0:02:34]} 24. b3 {[%emt 0:04:18]} Rf6 {[%emt 0:10:36]} 25. Be5 {[%emt 0:06:10]} Rf5 {[%emt 0:03:01]} 26. Be4 {[%emt 0:09:16]} Rg5 {[%emt 0:00:40]} 27. h4 {[%emt 0:01:33]} Rh5 {[%emt 0:00:11] Black cannot hold the game after this.} (27... Rg4 $16 {keeps fighting.} 28. Bf3 Rg6) 28. Bf3 $18 {[%emt 0:04:23] This bishop pair is nice.} Rxh4 {[%emt 0:00:07]} (28... Rf5 $142 29. Bg4 Rxe5 30. Rxe5 Bxg4) 29. Rxa6 {[%emt 0:01:52]} Bxa6 {[%emt 0:00:07]} 30. Rxa6 {[%emt 0:00:04]} Re8 {[%emt 0:00:08]} 31. g3 {[%emt 0:01:38][%cal Bg2g3,Bg3h4,Bh4h5][%mdl 32]} ({Much less strong is} 31. Bxc7 $6 Rd4 32. Rd6 Rxd6 33. Bxd6 Rc8 $16) 31... Rxe5 {[%emt 0:00:39]} 32. gxh4 {[%emt 0:00:04][%mdl 4096] Endgame KRB-KR} c5 {[%emt 0:00:13]} (32... Kf8 $142 33. Kf2 c5) 33. h5 {[%emt 0:03:48]} Kf8 {[%emt 0:00:10]} 34. Kf2 {[%emt 0:02:21]} Ke7 {[%emt 0:00:58]} 35. Be2 {[%emt 0:00:25]} Rg5 {[%emt 0:01:30]} 36. Ke3 {[%emt 0:00:47]} g6 $2 {[%emt 0:00:04] [#]} (36... Re5+ {might work better.} 37. Kd3 Rg5) 37. Kf4 {[%emt 0:02:58] White is clearly winning.} Rf5+ {[%emt 0:00:13]} 38. Ke4 {[%emt 0:00:14]} Rg5 {[%emt 0:00:02]} 39. Rb6 {[%emt 0:02:53]} Rg2 {[%emt 0:01:45]} 40. Bc4 {[%emt 0:00:45]} Rg4+ {[%emt 0:01:12]} 41. Kf3 {[%emt 0:30:21]} Rg5 {[%emt 0:30:07]} 42. Rb7+ {[%emt 0:00:52]} Kd6 {[%emt 0:00:05]} 43. Rxf7 {[%emt 0:00:29]} Rxh5 {[%emt 0:01:57]} 44. Rf6+ {[%emt 0:00:26]} Ke5 {[%emt 0:00:04]} 45. Rxg6 {[%emt 0:00:09]} Kd4 {[%emt 0:00:06]} 46. Rg3 {[%emt 0:00:43]} Rh2 {[%emt 0:00:14]} (46... Rf5+ $142 47. Kg4 Rf2 48. Rd3+ Ke4) 47. Kf4 {[%emt 0:00:51][%csl Gc2,Gc4][%cal Rg3d3] [#]} Rh4+ {[%emt 0:00:48]} 48. Kf5 {[%emt 0:00:24][%csl Gc2,Gc4][%cal Rg3d3]} Rh5+ {[%emt 0:00:03]} 49. Ke6 {[%emt 0:00:34]} Rh2 {[%emt 0:01:49]} 50. Rd3+ {[%emt 0:00:36]} Ke4 {[%emt 0:00:06]} 51. Kd6 {[%emt 0:01:27] Weighted Error Value: White=0.14 (very precise) /Black=0.30} 1-0

[Event "44th Chess Olympiad Open 2022"]
[Site "Chennai"]
[Date "2022.08.08"]
[Round "10.4"]
[White "Narayanan.S.L"]
[Black "Daneshvar, Bardiya"]
[Result "1-0"]
[ECO "D88"]
[WhiteElo "2659"]
[BlackElo "2490"]
[Annotator "TA"]
[PlyCount "179"]
[EventDate "2022.07.29"]
[EventType "team-tourn"]
[EventCountry "IND"]
[SourceTitle "playchess.com"]
[Source "ChessBase"]
[SourceQuality "1"]
[WhiteTeam "India"]
[BlackTeam "Iran"]
[WhiteTeamCountry "IND"]
[BlackTeamCountry "IRI"]
[TimeControl "40/5400+30:1800+30"]

{[%evp 27,179,31,31,4,6,5,12,0,0,0,0,0,0,0,0,0,0,0,0,0,0,0,0,0,0,0,0,0,0,0,89,87,74,86,87,0,6,0,47,33,39,47,65,52,164,172,330,337,316,206,262,245,302,201,201,201,201,201,201,145,201,201,201,201,201,201,201,201,201,201,201,201,201,201,201,201,201,201,201,201,201,0,201,194,194,189,168,138,256,200,543,379,452,463,1341,670,1205,1096,947,360,29963,29964,29964,29962,29960,29960,29958,1376,29941,6632,2920,2146,3006,447,1502,1535,1447,1480,1422,1422,1232,1368,29969,29970,29971,29972,29972,29973,29973,29974,29974,29975,29966,1532,619,503,29974,29975,29974,29973,29973,29974,29973,29975,29973,29975,29973,29974,29974,29976,29973,5122,29978,29976]} 1. d4 {[%emt 0:00:04]} Nf6 {[%emt 0:00:07]} 2. c4 {[%emt 0:00:06]} g6 {[%emt 0:00:13]} 3. Nc3 {[%emt 0:00:27]} d5 {[%emt 0:00:04]} 4. cxd5 {[%emt 0:01:06]} Nxd5 {[%emt 0:00:08]} 5. e4 {[%emt 0:00:19]} Nxc3 {[%emt 0:00:06]} 6. bxc3 {[%emt 0:00:05]} Bg7 {[%emt 0:00:04]} 7. Bc4 {[%emt 0:00:42]} c5 {[%emt 0:01:09]} 8. Ne2 {[%emt 0:00:06]} O-O {[%emt 0:01:21]} 9. Be3 {[%emt 0:01:15]} Nc6 {[%emt 0:00:36]} 10. O-O {[%emt 0:00:17]} b6 {[%emt 0:01:10]} 11. Qd2 {[%emt 0:00:46]} Bb7 {[%emt 0:02:10]} 12. Rac1 {[%emt 0:06:49]} cxd4 {[%emt 0:06:51]} 13. cxd4 {[%emt 0:00:00]} Na5 {[%emt 0:01:29]} 14. Bd3 {[%emt 0:00:00]} Qd7 {[%emt 0:01:22]} 15. h4 $5 {[%emt 0:09:05][%cal Bh2h4,Bh4h5,Bh5h6][%mdl 4] Exploring less charted territory. D88: Exchange Grünfeld: Classical Line: 10 Be3 cxd4 11 cxd4.} Rac8 {[%emt 0:03:13]} 16. h5 {[%emt 0:04:26]} Rfd8 {[%emt 0:04:14] [#]} 17. h6 $146 {[%emt 0:00:00] The position is equal.} ({Predecessor:} 17. hxg6 hxg6 18. f3 e6 19. Rxc8 Rxc8 20. Rc1 Rxc1+ 21. Qxc1 Qa4 22. Qc2 Qxc2 23. Bxc2 {½-½ (86) Mielke,K-Kretschmer,K GER corr 1991}) 17... Bf8 {[%emt 0:26:50]} 18. Qb2 {[%emt 0:30:36]} e6 {[%emt 0:00:00]} 19. Bg5 {[%emt 0:02:53]} Rxc1 {[%emt 0:06:04]} 20. Rxc1 {[%emt 0:00:00]} Rc8 {[%emt 0:00:16]} 21. Rxc8 {[%emt 0:09:13]} Qxc8 {[%emt 0:03:09]} 22. Nf4 {[%emt 0:05:34]} Nc4 {[%emt 0:04:25]} 23. Qe2 {[%emt 0:00:00]} Nd6 {[%emt 0:04:30][%cal Of7f6]} 24. e5 {[%emt 0:02:22]} Ne8 {[%emt 0:04:57]} 25. Be4 {[%emt 0:12:14]} Nc7 {[%emt 0:03:02]} 26. Qf3 {[%emt 0:00:00]} Bxe4 {[%emt 0:14:35]} 27. Qxe4 {[%emt 0:00:00]} Na6 {[%emt 0:01:18]} 28. d5 {[%emt 0:00:00]} Nc5 {[%emt 0:01:23]} (28... Qc1+ $11 {remains equal.} 29. Kh2 exd5 30. Qxd5 Qc7) 29. Qc4 $1 $16 {[%emt 0:03:58] d6 is the strong threat.} exd5 {[%emt 0:02:18]} 30. Nxd5 {[%emt 0:00:00]} Qe6 {[%emt 0:07:58]} 31. Bf4 {[%emt 0:05:32] 0x0.0019ed100d6cdp-1022s more active pieces.} ({Better is} 31. f4 $16) 31... b5 {[%emt 0:00:00]} 32. Qd4 {[%emt 0:00:00]} Qf5 {[%emt 0:00:00]} (32... Nd7 $11) 33. Nf6+ $14 {[%emt 0:00:49]} Kh8 {[%emt 0:00:00]} 34. Be3 $36 {[%emt 0:00:40][%mdl 2048] Strongly threatening Qd5. Black is under pressure.} Qd3 {[%emt 0:01:15]} 35. Qg4 {[%emt 0:01:32] White wants to mate with Qc8.} Ne6 {[%emt 0:00:59]} ({Black should play} 35... Qb1+ $14 36. Kh2 Qf5) 36. Qf3 $1 $18 {[%emt 0:00:17] Hoping for Qb7.} ({And not} 36. Bxa7 Qc3 37. Qe4 Qc1+ 38. Kh2 Qxh6+ 39. Kg1 Qc1+ 40. Kh2 Qh6+ 41. Kg1 Qc1+ 42. Kh2 Qh6+ $11) 36... Qc3 $2 {[%emt 0:00:40]} (36... Qb1+ 37. Kh2 Qf5) 37. Nd7 $1 {[%emt 0:01:19]} Kg8 {[%emt 0:00:24]} 38. Qb7 {[%emt 0:01:05] Intending Nf6+ and mate.} Qc7 {[%emt 0:00:31]} 39. Qxb5 {[%emt 0:00:09]} Be7 {[%emt 0:00:33]} 40. Nf6+ {[%emt 0:03:51]} Bxf6 {[%emt 0:00:08]} 41. exf6 {[%emt 0:31:05][%mdl 4096] Endgame KQB-KQN} Qc8 {[%emt 0:03:16]} 42. a4 {[%emt 0:00:00][%cal Ba2a4,Ba4a5][%mdl 32]} a6 {[%emt 0:00:31]} 43. Qb6 {[%emt 0:00:00]} Qa8 {[%emt 0:03:26]} (43... Nf8 $16 44. Kh2 Qc4) 44. a5 {[%emt 0:00:00]} Qc8 {[%emt 0:01:03]} 45. Qd6 {[%emt 0:00:00]} Qa8 {[%emt 0:03:04]} 46. f3 {[%emt 0:00:00]} Qc8 {[%emt 0:02:26]} 47. Bd2 {[%emt 0:00:00] Against Qc3} Qa8 {[%emt 0:06:22]} 48. Kf2 {[%emt 0:00:00]} Qc8 {[%emt 0:01:05]} 49. Bb4 {[%emt 0:00:00]} Qc2+ {[%emt 0:01:43]} 50. Kg3 {[%emt 0:00:00] Qb8+ would kill now.} Qc8 {[%emt 0:00:39] Prevents Qb8.} 51. Qb6 {[%emt 0:00:02]} Qa8 {[%emt 0:02:15]} 52. Bd6 {[%emt 0:00:12]} Qc8 {[%emt 0:00:23]} 53. Qa7 {[%emt 0:00:46]} Nd8 {[%emt 0:01:42]} 54. Qb6 {[%emt 0:03:02]} ({Don't do} 54. Qe7 $6 Nc6 55. Qe1 Nd4 $16) 54... Ne6 $1 {[%emt 0:00:57]} 55. Kh2 {[%emt 0:01:47]} Qa8 {[%emt 0:02:21]} 56. Kh3 {[%emt 0:00:34]} Qc8 {[%emt 0:01:22]} 57. Kg3 {[%emt 0:00:06]} Qa8 {[%emt 0:00:36]} (57... Nd8 $16 58. Kh4 Ne6) 58. Kf2 $1 {[%emt 0:00:59] Threatens to win with Ke3.} Nd8 $2 {[%emt 0:01:24]} (58... Qc8 {is tougher.} 59. g4 Qc2+ 60. Kg3 Qc8) 59. Ke3 {[%emt 0:00:30]} Nc6 {[%emt 0:00:16]} 60. Qc7 {[%emt 0:01:15] Against Qc8} Qe8+ {[%emt 0:01:25]} (60... Nd8 $142 61. f4 (61. Qe7 Nc6 $16) 61... Nc6) 61. Kd3 {[%emt 0:00:32]} (61. Be7 $142 Qa8 62. f4) 61... Qa8 {[%emt 0:00:51]} 62. Kc4 {[%emt 0:00:36]} Nd8 {[%emt 0:00:54]} 63. g3 $2 {[%emt 0:00:53]} (63. g4 Ne6 64. Qb8+ Qxb8 65. Bxb8) 63... Nb7 $2 {[%emt 0:01:35]} (63... Ne6 $18 64. Qb8+ Qxb8 65. Bxb8 Kf8) 64. Be7 {[%emt 0:00:12]} Kh8 {[%emt 0:00:30]} 65. Kd4 {[%emt 0:00:55]} Kg8 {[%emt 0:00:27]} 66. Ke5 {[%emt 0:00:08]} Kh8 {[%emt 0:00:19]} 67. f4 {[%emt 0:00:20]} Kg8 {[%emt 0:00:07]} 68. g4 {[%emt 0:00:48]} (68. Kd4 $142 Qa7+ 69. Kc4 Qa8 70. g4 Kh8 71. Kd4 Kg8 72. Kc4 Kh8 73. f5) 68... Kh8 {[%emt 0:00:04]} 69. g5 {[%emt 0:01:14]} Kg8 {[%emt 0:00:06]} 70. f5 {[%emt 0:00:15]} (70. Kd4 $142 Kh8 71. Ke3) 70... gxf5 {[%emt 0:00:23]} (70... Kh8 $142 71. Kd4 Kg8) 71. Kxf5 {[%emt 0:00:26]} Kh8 {[%emt 0:00:14]} 72. Kf4 {[%emt 0:00:41]} Kg8 {[%emt 0:00:33]} 73. Ke3 {[%emt 0:00:12]} Kh8 {[%emt 0:00:26]} 74. Kd2 {[%emt 0:00:45]} Kg8 {[%emt 0:00:24]} 75. Kc3 {[%emt 0:00:22]} Kh8 {[%emt 0:00:09]} 76. Kb4 {[%emt 0:00:19]} Kg8 {[%emt 0:00:09]} 77. Ka3 {[%emt 0:01:32]} Kh8 {[%emt 0:00:41]} 78. Bb4 {[%emt 0:00:52]} Nd8 {[%emt 0:00:56] [#]} 79. Bc3 $1 {[%emt 0:00:06]} Kg8 {[%emt 0:01:07]} 80. Qe7 {[%emt 0:00:53]} (80. Qd7 $142 Nc6 81. g6 Qf8+ 82. Ka4 hxg6 83. Qxc6 Qd8 84. Ka3 Qf8+ 85. Ka2) 80... Nc6 {[%emt 0:00:58] [#]} 81. Qd7 $1 {[%emt 0:00:22] aiming for Ka2.} Na7 {[%emt 0:00:44]} (81... Qf8+ $18 82. Kb3 Nb8) 82. g6 {[%emt 0:00:16]} Nb5+ {[%emt 0:01:11]} 83. Kb3 {[%emt 0:00:11]} hxg6 {[%emt 0:00:36]} 84. h7+ $1 {[%emt 0:00:03]} Kxh7 {[%emt 0:00:07]} 85. Qxf7+ {[%emt 0:00:04]} Kh6 {[%emt 0:00:08]} 86. Bd2+ {[%emt 0:00:29]} Kh5 {[%emt 0:00:06]} 87. Qh7+ {[%emt 0:00:10]} Kg4 {[%emt 0:00:05]} 88. Qxg6+ {[%emt 0:00:03]} Kf3 {[%emt 0:00:48]} 89. Qd3+ {[%emt 0:00:06]} Kg4 {[%emt 0:00:12]} 90. f7 {[%emt 0:00:07] Weighted Error Value: White=0.16 (very precise) /Black=0.26 (precise)} 1-0

[Event "44th Chess Olympiad Open 2022"]
[Site "Chennai"]
[Date "2022.08.08"]
[Round "10.5"]
[White "Van Foreest, Jorden"]
[Black "Ivic, Velimir"]
[Result "1/2-1/2"]
[ECO "D02"]
[WhiteElo "2678"]
[BlackElo "2581"]
[Annotator "TA"]
[PlyCount "81"]
[EventDate "2022.07.29"]
[EventType "team-tourn"]
[EventCountry "IND"]
[SourceTitle "playchess.com"]
[Source "ChessBase"]
[SourceQuality "1"]
[WhiteTeam "Netherlands"]
[BlackTeam "Serbia"]
[WhiteTeamCountry "NED"]
[BlackTeamCountry "SRB"]
[TimeControl "40/5400+30:1800+30"]

{[%evp 11,81,0,2,9,10,18,9,2,16,13,19,10,14,16,33,22,34,8,48,42,54,0,37,37,36,0,8,14,10,8,9,0,0,0,0,0,0,0,0,0,15,10,10,10,10,10,10,10,10,10,10,0,0,0,0,0,0,0,4,4,7,4,25,0,0,0,0,0,0,0,0,0]} 1. Nf3 {[%emt 0:00:04]} d5 {[%emt 0:00:34]} 2. g3 {[%emt 0:00:24]} g6 {[%emt 0:00:27]} 3. Bg2 {[%emt 0:00:24]} Bg7 {[%emt 0:00:08]} 4. d4 {[%emt 0:00:37]} Nf6 {[%emt 0:00:12]} 5. O-O {[%emt 0:00:28]} O-O {[%emt 0:00:12]} 6. c3 {[%emt 0:00:57]} c6 {[%emt 0:06:33]} 7. a4 {[%emt 0:01:37] D02: 1 d4 d5 2 Nf3 sidelines, including 2...Nf6 3 g3 and 2...Nf6 3 Bf4.} a5 {[%emt 0:01:22]} 8. Nbd2 {[%emt 0:00:33][%cal Bb1d2,Bd2f3,Bf3e5][%mdl 32] [#]} Bg4 $146 {[%emt 0:09:33]} ({Predecessor:} 8... Re8 9. Qb3 Ra6 10. Re1 Rb6 11. Qa3 Nbd7 12. e4 e5 13. exd5 e4 14. dxc6 exf3 15. Rxe8+ Qxe8 16. cxd7 Bxd7 17. Nxf3 {1-0 (32) Zherebukh,Y (2633)-Durarbayli,V (2618) Saint Louis 2018}) 9. h3 {[%emt 0:01:48]} Bxf3 {[%emt 0:00:30]} 10. exf3 {[%emt 0:05:54]} Nbd7 {[%emt 0:03:06]} 11. f4 {[%emt 0:02:49]} e6 {[%emt 0:02:21]} 12. Nf3 {[%emt 0:03:08]} b5 {[%emt 0:02:48]} 13. Ne5 {[%emt 0:02:01]} Qc7 {[%emt 0:02:55]} 14. Qe2 {[%emt 0:02:29]} Rab8 {[%emt 0:00:27]} 15. Be3 {[%emt 0:06:39]} Rfc8 {[%emt 0:04:31]} 16. g4 {[%emt 0:13:42]} (16. axb5 $14 Rxb5 17. Ra2) 16... Ne8 {[%emt 0:14:37]} 17. axb5 {[%emt 0:00:00]} cxb5 {[%emt 0:02:46]} 18. f5 {[%emt 0:00:00][%cal Oe5f7] [#] Nxf7! is the strong threat.} Nxe5 {[%emt 0:07:55]} 19. dxe5 {[%emt 0:00:00]} (19. Bf4 {looks sharper.} Qc4 20. Qe3 exf5 21. Bxe5 Bxe5 22. Qxe5 fxg4 23. Rxa5 Qc7 24. Qxc7 Nxc7 25. hxg4 b4 26. Re1) 19... Qxe5 {[%emt 0:02:22]} 20. fxe6 {[%emt 0:03:02]} ({Much worse is} 20. Rxa5 gxf5 21. Qf3 fxg4 22. Qxg4 Qf6 $15) 20... Qxe6 {[%emt 0:00:55]} 21. Qd3 {[%emt 0:03:02]} d4 {[%emt 0:08:23]} 22. Bxd4 {[%emt 0:06:22] This bishop pair is nice.} Rd8 {[%emt 0:07:41]} 23. Rxa5 {[%emt 0:05:04]} Bxd4 {[%emt 0:00:24]} 24. cxd4 {[%emt 0:00:05]} Qb6 {[%emt 0:00:37][%csl LRa5,LRd4]} 25. Rfa1 {[%emt 0:02:27]} Qxd4 {[%emt 0:07:06]} 26. Qxd4 {[%emt 0:00:10]} Rxd4 {[%emt 0:00:04]} 27. Ra8 {[%emt 0:01:14]} Rbd8 {[%emt 0:02:05]} 28. Bc6 {[%emt 0:19:56]} Nc7 {[%emt 0:01:59]} 29. Rxd8+ {[%emt 0:00:05]} Rxd8 $11 {[%emt 0:00:03][%mdl 4096] Endgame KRB-KRN} 30. Ra7 {[%emt 0:00:06]} Ne6 {[%emt 0:00:46]} 31. Bd7 {[%emt 0:00:05]} Nf4 {[%emt 0:05:44]} 32. Kh2 {[%emt 0:02:06]} b4 {[%emt 0:01:59]} 33. b3 {[%emt 0:01:27]} Nd3 {[%emt 0:02:09]} 34. Bb5 {[%emt 0:01:28]} Rd4 {[%emt 0:01:12]} 35. Kg3 {[%emt 0:00:59]} g5 {[%emt 0:00:49]} 36. Ra5 {[%emt 0:03:21]} Ne5 {[%emt 0:02:30] Inhibits Bc4.} 37. Bc4 {[%emt 0:01:45]} (37. Ba6 $5 {[%cal Ra5e5]} f6 38. f3 $14) 37... Nxc4 {[%emt 0:00:12] The position is equal.} 38. Rxg5+ {[%emt 0:00:10]} Kf8 {[%emt 0:00:09]} 39. bxc4 {[%emt 0:00:40]} Rxc4 {[%emt 0:00:07]} 40. Rb5 {[%emt 0:00:05]} Kg7 {[%emt 0:01:25]} 41. Rb6 {[%emt 0:03:30] Weighted Error Value: White=0.06 (flawless) /Black=0.06 (flawless)} 1/2-1/2

[Event "44th Chess Olympiad Open 2022"]
[Site "Chennai"]
[Date "2022.08.08"]
[Round "10.5"]
[White "Markus, Robert"]
[Black "Bok, Benjamin"]
[Result "1-0"]
[ECO "E14"]
[WhiteElo "2616"]
[BlackElo "2616"]
[Annotator "TA"]
[PlyCount "101"]
[EventDate "2022.07.29"]
[EventType "team-tourn"]
[EventCountry "IND"]
[SourceTitle "playchess.com"]
[Source "ChessBase"]
[SourceQuality "1"]
[WhiteTeam "Serbia"]
[BlackTeam "Netherlands"]
[WhiteTeamCountry "SRB"]
[BlackTeamCountry "NED"]
[TimeControl "40/5400+30:1800+30"]

{[%evp 17,101,0,0,0,0,1,14,8,12,0,8,0,0,0,0,-13,22,11,63,20,28,30,18,19,62,61,66,63,86,86,87,78,78,83,143,127,200,211,197,183,199,143,230,230,224,230,230,230,230,230,230,230,289,230,230,230,223,216,229,229,273,235,360,363,362,277,399,385,533,394,583,573,9470,9804,7555,7952,6888,6595,5954,5564,7676,7483,6788,6560,1730,1208]} 1. d4 {[%emt 0:00:04]} Nf6 {[%emt 0:00:06]} 2. Nf3 {[%emt 0:00:17]} d5 {[%emt 0:00:05]} 3. c4 {[%emt 0:00:08]} e6 {[%emt 0:00:04]} 4. e3 {[%emt 0:00:06]} b6 {[%emt 0:00:05]} 5. b3 {[%emt 0:00:32]} Bb7 {[%emt 0:00:10]} 6. Bd3 {[%emt 0:00:09]} Nbd7 {[%emt 0:00:17]} 7. O-O {[%emt 0:00:09]} Bd6 {[%emt 0:00:35]} 8. Nc3 {[%emt 0:00:23][%cal Bb1c3,Bc3e2,Be2g3][%mdl 32]} O-O {[%emt 0:04:08]} 9. Bb2 {[%emt 0:00:05]} a6 {[%emt 0:07:47]} 10. a4 {[%emt 0:00:50] E14: Queen's Indian: Classical Variation (4 e3).} c5 {[%emt 0:06:28]} 11. cxd5 {[%emt 0:01:08]} exd5 {[%emt 0:06:49]} 12. Rc1 {[%emt 0:02:07] The position is equal.} Qe7 {[%emt 0:00:14]} 13. Ne2 {[%emt 0:04:58]} Rfe8 {[%emt 0:04:21] [#]} 14. Ng3 $146 {[%emt 0:02:57]} ({Predecessor:} 14. Nf4 Rac8 15. h3 g6 16. Qd2 Qf8 17. Rfe1 Bb8 18. Red1 Qh6 19. Nh2 g5 20. Ne2 {½-½ (39) Mauritsson,S (2507)-Habermehl,T (2502) GER email 2019}) 14... g6 {[%emt 0:01:55] Inhibits Nf5.} 15. Qe2 {[%emt 0:06:19]} Ne4 {[%emt 0:05:00]} 16. Rfd1 {[%emt 0:02:39]} cxd4 {[%emt 0:08:59]} 17. Nxd4 {[%emt 0:04:11] [#] aiming for Bxe4.} ({Reject} 17. Bxd4 Nec5) 17... Be5 {[%emt 0:04:44]} (17... Nxg3 $11 18. hxg3 Nc5) 18. Bxe4 {[%emt 0:14:21]} dxe4 {[%emt 0:02:10]} 19. Nc6 {[%emt 0:04:41] Inhibits Rad8.} (19. Ngf5 {is more complex.} Qf8 20. Ne6 Rxe6 21. Rxd7 gxf5 22. Rxb7 Rc8 23. Rf1) 19... Bxc6 {[%emt 0:01:31]} 20. Rxc6 {[%emt 0:08:13]} Bxb2 {[%emt 0:08:16]} 21. Qxb2 {[%emt 0:00:00]} Rad8 {[%emt 0:02:12] White must now prevent ...Ne5.} 22. Rd4 {[%emt 0:13:25] 0x0.001f250ed478dp-1022s more active pieces.} Nc5 {[%emt 0:15:37] Black is on the road to losing.} 23. h3 {[%emt 0:14:48]} Qb7 {[%emt 0:07:55]} 24. Rdd6 {[%emt 0:00:00]} Rxd6 {[%emt 0:02:03]} 25. Rxd6 {[%emt 0:00:00]} a5 {[%emt 0:00:34]} (25... Qc7 $142 26. Qf6 Nxb3) 26. Qf6 $16 {[%emt 0:11:41]} Nxb3 {[%emt 0:09:53]} (26... Qa7 $16) 27. Rxb6 $40 {[%emt 0:00:00][%cal Bd6b6,Bb6b5,Bb5d5][%mdl 160] Threatening mate with Nh5. White goes for the king.} Qd5 {[%emt 0:00:11] Against Nh5} 28. Rb5 {[%emt 0:00:00]} Nc5 {[%emt 0:01:04]} 29. Kh2 {[%emt 0:00:00]} (29. Rxa5 $18 Qd1+ 30. Kh2) 29... Nd7 {[%emt 0:01:00]} (29... Ra8 $16 {was called for.} 30. Qe7 Rc8) 30. Qxg6+ {[%emt 0:00:00]} ({Don't do} 30. Rxd5 $6 Nxf6 31. Rxa5 Rc8 $16) 30... hxg6 {[%emt 0:00:09]} 31. Rxd5 {[%emt 0:00:00][%mdl 4096] Endgame KRN-KRN} Nf6 {[%emt 0:00:50]} 32. Rxa5 {[%emt 0:00:00]} Rc8 {[%emt 0:00:09]} 33. Re5 {[%emt 0:00:00]} Rc4 {[%emt 0:00:10]} 34. a5 {[%emt 0:00:00]} Ra4 {[%emt 0:00:03]} 35. a6 {[%emt 0:00:00]} Kg7 {[%emt 0:00:35]} 36. a7 {[%emt 0:00:00]} Rxa7 {[%emt 0:00:10]} 37. Nxe4 {[%emt 0:00:00]} Ng8 {[%emt 0:01:00]} 38. g4 {[%emt 0:00:00]} f6 {[%emt 0:00:01]} 39. Re8 {[%emt 0:00:00]} f5 {[%emt 0:00:55]} (39... Ne7 $142 40. Kg3 g5) 40. gxf5 {[%emt 0:00:00]} gxf5 {[%emt 0:00:01]} 41. Nd6 {[%emt 0:21:37]} f4 {[%emt 0:19:00]} (41... Ra5 $142 42. Kg3 Nf6 43. Re7+ Kg8) 42. e4 {[%emt 0:00:00]} Nh6 {[%emt 0:03:39]} 43. Re6 {[%emt 0:00:00]} Kh7 {[%emt 0:02:51]} (43... Nf7 $142 44. Nf5+ Kh7) 44. Kg2 {[%emt 0:00:00] White is clearly winning.} Ra6 {[%emt 0:00:48] [#]} 45. Nf7 $1 {[%emt 0:00:00][%mdl 512] White threatens Rxh6+ and mate.} f3+ {[%emt 0:02:46]} (45... Rxe6 46. Ng5+) 46. Kg3 {[%emt 0:00:00] Intending Rxh6+ and mate.} Rxe6 {[%emt 0:00:17]} 47. Ng5+ {[%emt 0:00:00]} Kg6 {[%emt 0:00:04]} 48. Nxe6 {[%emt 0:00:00]} Nf7 {[%emt 0:00:32]} 49. Kxf3 {[%emt 0:00:00]} Kf6 {[%emt 0:00:07]} 50. Nc5 {[%emt 0:00:00]} Ne5+ {[%emt 0:00:48]} 51. Ke3 {[%emt 0:00:00] Weighted Error Value: White=0.07 (flawless) /Black=0.32} 1-0